fUST/lending_fUST_20250530
["ID","MTS","AMOUNT","RATE_DAILY","PERIOD"]
[363037943,1748557840046,-401.58972257,0.00019178,2]
[363037944,1748557840055,-400.0,0.00019178,2]
[363037946,1748557840065,-430.0,0.00019178,2]
[363037948,1748557840074,-518.68389446,0.00019178,2]
[363037950,1748557840083,-430.0,0.00019178,2]
[363037952,1748557840093,-505.15636468,0.00019178,2]
[363037954,1748557840102,-315.45721994,0.00019178,2]
[363037955,1748557840111,-430.0,0.00019178,2]
[363037957,1748557840120,-430.0,0.00019178,2]
[363037959,1748557840129,-430.0,0.00019178,2]
[363037961,1748557840138,-2720.13,0.00019178,2]
[363037963,1748557840147,-430.0,0.00019178,2]
[363037964,1748557840156,-430.0,0.00019178,2]
[363037966,1748557840165,-430.0,0.00019178,2]
[363037968,1748557840174,-430.0,0.00019178,2]
[363037979,1748557840291,-430.0,0.00019178,2]
[363037981,1748557840302,-430.0,0.00019178,2]
[363037983,1748557840311,-1156.66,0.00019178,2]
[363037985,1748557840321,-400.55172451,0.00019178,2]
[363037987,1748557840330,-430.0,0.00019178,2]
[363037988,1748557840340,-430.0,0.00019178,2]
[363037990,1748557840350,-191.06119385,0.00019178,2]
[363037992,1748557840360,-2199.24,0.00019178,2]
[363037994,1748557840368,-430.0,0.00019178,2]
[363037996,1748557840378,-430.0,0.00019178,2]
[363037998,1748557840387,-430.0,0.00019178,2]
[363037999,1748557840397,-430.0,0.00019178,2]
[363038001,1748557840406,-407.18111772,0.00019178,2]
[363038003,1748557840415,-2655.27,0.00019178,2]
[363038005,1748557840424,-644.54,0.00019178,2]
[363038007,1748557840433,-430.0,0.00019178,2]
[363038008,1748557840442,-430.0,0.00019178,2]
[363038010,1748557840451,-431.06480207,0.00019178,2]
[363038012,1748557840461,-430.0,0.00019178,2]
[363038014,1748557840470,-430.0,0.00019178,2]
[363038016,1748557840480,-430.0,0.00019178,2]
[363038017,1748557840489,-430.0,0.00019178,2]
[363038019,1748557840499,-430.0,0.00019178,2]
[363038021,1748557840508,-400.0,0.00019178,2]
[363038023,1748557840517,-430.0,0.00019178,2]
[363038025,1748557840526,-430.0,0.00019178,2]
[363038027,1748557840535,-430.0,0.00019178,2]
[363038028,1748557840544,-430.0,0.00019178,2]
[363038030,1748557840554,-194.6266197,0.00019178,2]
[363038032,1748557840563,-400.73349813,0.00019178,2]
[363038033,1748557840575,-447.92,0.00019178,2]
[363038035,1748557840594,-430.0,0.00019178,2]
[363038036,1748557840603,-430.0,0.00019178,2]
[363038038,1748557840612,-2374.77,0.00019178,2]
[363038039,1748557840621,-430.0,0.00019178,2]
[363038041,1748557840631,-430.0,0.00019178,2]
[363038042,1748557840640,-430.0,0.00019178,2]
[363038043,1748557840649,-641.37,0.00019178,2]
[363038045,1748557840658,-430.0,0.00019178,2]
[363038046,1748557840667,-430.0,0.00019178,2]
[363038048,1748557840676,-430.0,0.00019178,2]
[363038050,1748557840685,-430.0,0.00019178,2]
[363038051,1748557840694,-430.0,0.00019178,2]
[363038053,1748557840703,-430.0,0.00019178,2]
[363038054,1748557840713,-430.0,0.00019178,2]
[363038055,1748557840722,-546.60178716,0.00019178,2]
[363038056,1748557840731,-430.0,0.00019178,2]
[363038057,1748557840740,-2642.34,0.00019178,2]
[363038058,1748557840750,-401.34076289,0.00019178,2]
[363038059,1748557840759,-544.63671329,0.00019178,2]
[363038060,1748557840769,-430.0,0.00019178,2]
[363038061,1748557840778,-430.0,0.00019178,2]
[363038062,1748557840787,-430.0,0.00019178,2]
[363038063,1748557840798,-430.0,0.00019178,2]
[363038064,1748557840808,-430.0,0.00019178,2]
[363038065,1748557840817,-430.0,0.00019178,2]
[363038066,1748557840827,-430.0,0.00019178,2]
[363038067,1748557840836,-430.0,0.00019178,2]
[363038069,1748557840845,-370.00000002,0.00019178,2]
[363038071,1748557840854,-430.0,0.00019178,2]
[363038073,1748557840863,-430.0,0.00019178,2]
[363038074,1748557840873,-676.04,0.00019178,2]
[363038076,1748557840883,-430.0,0.00019178,2]
[363038077,1748557840891,-430.0,0.00019178,2]
[363038078,1748557840901,-170.87102801,0.00019178,2]
[363038079,1748557840910,-243.776,0.00019178,2]
[363038080,1748557840919,-181.45628,0.00019178,2]
[363038081,1748557840928,-500.0,0.00019233,2]
[363038082,1748557840937,-564.0,0.0001926,2]
[363038083,1748557840947,-1202.70281402,0.00019352,2]
[363038084,1748557840956,-430.0,0.00019452,2]
[363038085,1748557840966,-430.0,0.00019452,2]
[363038086,1748557840975,-430.0,0.00019452,2]
[363038087,1748557840984,-1000.0,0.00019452,2]
[363038088,1748557840994,-430.0,0.00019452,2]
[363038089,1748557841003,-374.87553884,0.00019452,2]
[363038090,1748557841013,-242.67091253,0.00019452,2]
[363038091,1748557841023,-430.0,0.00019452,2]
[363038092,1748557841032,-430.0,0.00019452,2]
[363038093,1748557841042,-430.0,0.00019452,2]
[363038094,1748557841051,-430.0,0.00019452,2]
[363038095,1748557841060,-430.0,0.00019452,2]
[363038096,1748557841069,-430.0,0.00019452,2]
[363038097,1748557841079,-552.01732202,0.00019452,2]
[363038098,1748557841088,-430.0,0.00019452,2]
[363038099,1748557841097,-511.80671604,0.00019452,2]
[363038100,1748557841108,-430.0,0.00019452,2]
[363038101,1748557841117,-430.0,0.00019452,2]
[363038102,1748557841126,-430.0,0.00019452,2]
[363038103,1748557841136,-430.0,0.00019452,2]
[363038104,1748557841145,-430.0,0.00019452,2]
[363038105,1748557841154,-288.86864681,0.00019452,2]
[363038106,1748557841164,-353.6529573,0.00019452,2]
[363038107,1748557841174,-430.0,0.00019452,2]
[363038108,1748557841183,-430.0,0.00019452,2]
[363038109,1748557841193,-430.0,0.00019452,2]
[363038110,1748557841202,-430.0,0.00019452,2]
[363038111,1748557841211,-430.0,0.00019452,2]
[363038112,1748557841220,-430.0,0.00019452,2]
[363038113,1748557841230,-260.0,0.00019452,2]
[363038114,1748557841239,-430.0,0.00019452,2]
[363038115,1748557841249,-556.055127,0.00019452,2]
[363038116,1748557841259,-430.0,0.00019452,2]
[363038117,1748557841268,-384.42233015,0.00019452,2]
[363038118,1748557841277,-430.0,0.00019452,2]
[363038119,1748557841287,-430.0,0.00019452,2]
[363038120,1748557841298,-385.38695324,0.00019452,2]
[363038121,1748557841307,-430.0,0.00019452,2]
[363038122,1748557841317,-430.0,0.00019452,2]
[363038123,1748557841326,-430.0,0.00019452,2]
[363038124,1748557841336,-430.0,0.00019452,2]
[363038125,1748557841345,-430.0,0.00019452,2]
[363038126,1748557841354,-430.0,0.00019452,2]
[363038127,1748557841363,-430.0,0.00019452,2]
[363038128,1748557841373,-430.0,0.00019452,2]
[363038129,1748557841384,-430.0,0.00019452,2]
[363038130,1748557841393,-430.0,0.00019452,2]
[363038131,1748557841402,-430.0,0.00019452,2]
[363038132,1748557841411,-456.76671382,0.00019452,2]
[363038133,1748557841420,-503.5574661,0.00019452,2]
[363038134,1748557841429,-430.0,0.00019452,2]
[363038135,1748557841438,-414.78872611,0.00019452,2]
[363038136,1748557841447,-501.84,0.00019452,2]
[363038137,1748557841457,-314.92196697,0.00019452,2]
[363038138,1748557841467,-430.0,0.00019452,2]
[363038139,1748557841476,-430.0,0.00019452,2]
[363038140,1748557841486,-430.0,0.00019452,2]
[363038141,1748557841495,-430.0,0.00019452,2]
[363038142,1748557841504,-430.0,0.00019452,2]
[363038143,1748557841514,-430.0,0.00019452,2]
[363038144,1748557841523,-430.0,0.00019452,2]
[363038145,1748557841532,-430.0,0.00019452,2]
[363038146,1748557841542,-430.0,0.00019452,2]
[363038147,1748557841552,-430.0,0.00019452,2]
[363038148,1748557841561,-430.0,0.00019452,2]
[363038149,1748557841571,-450.0,0.00019452,2]
[363038150,1748557841583,-430.0,0.00019452,2]
[363038151,1748557841592,-873.99,0.00019452,2]
[363038152,1748557841602,-430.0,0.00019452,2]
[363038153,1748557841612,-430.0,0.00019452,2]
[363038154,1748557841622,-430.0,0.00019452,2]
[363038155,1748557841632,-410.0,0.00019452,2]
[363038156,1748557841642,-430.0,0.00019452,2]
[363038157,1748557841651,-319.3332968,0.00019452,2]
[363038158,1748557841661,-414.06937325,0.00019452,2]
[363038159,1748557841670,-554.74,0.00019452,2]
[363038160,1748557841679,-430.0,0.00019452,2]
[363038161,1748557841689,-430.0,0.00019452,2]
[363038162,1748557841698,-430.0,0.00019452,2]
[363038163,1748557841708,-430.0,0.00019452,2]
[363038164,1748557841718,-430.0,0.00019452,2]
[363038165,1748557841727,-430.0,0.00019452,2]
[363038166,1748557841737,-430.0,0.00019452,2]
[363038167,1748557841746,-1069.37,0.00019452,2]
[363038168,1748557841756,-430.0,0.00019452,2]
[363038169,1748557841765,-584.45,0.00019452,2]
[363038170,1748557841775,-430.0,0.00019452,2]
[363038171,1748557841784,-430.0,0.00019452,2]
[363038172,1748557841794,-430.0,0.00019452,2]
[363038173,1748557841804,-364.4,0.00019452,2]
[363038174,1748557841814,-688.69,0.00019452,2]
[363038175,1748557841824,-430.0,0.00019452,2]
[363038176,1748557841833,-430.0,0.00019452,2]
[363038177,1748557841842,-430.0,0.00019452,2]
[363038178,1748557841852,-430.0,0.00019452,2]
[363038179,1748557841861,-430.0,0.00019452,2]
[363038180,1748557841871,-430.0,0.00019452,2]
[363038181,1748557841880,-430.0,0.00019452,2]
[363038182,1748557841889,-430.0,0.00019452,2]
[363038183,1748557841899,-531.57,0.00019452,2]
[363038184,1748557841909,-430.0,0.00019452,2]
[363038185,1748557841919,-430.0,0.00019452,2]
[363038186,1748557841929,-430.0,0.00019452,2]
[363038187,1748557841938,-430.0,0.00019452,2]
[363038188,1748557841948,-430.0,0.00019452,2]
[363038189,1748557841957,-430.0,0.00019452,2]
[363038190,1748557841967,-537.88,0.00019452,2]
[363038191,1748557841976,-430.0,0.00019452,2]
[363038192,1748557841985,-558.57683958,0.00019452,2]
[363038193,1748557841995,-430.0,0.00019452,2]
[363038194,1748557842004,-433.60472095,0.00019452,2]
[363038195,1748557842013,-150.96260043,0.00019452,2]
[363038196,1748557842022,-430.0,0.00019452,2]
[363038197,1748557842031,-430.0,0.00019452,2]
[363038198,1748557842041,-430.0,0.00019452,2]
[363038199,1748557842051,-430.0,0.00019452,2]
[363038200,1748557842060,-430.0,0.00019452,2]
[363038201,1748557842069,-430.0,0.00019452,2]
[363038202,1748557842079,-4017.04,0.00019452,2]
[363038203,1748557842088,-430.0,0.00019452,2]
[363038204,1748557842097,-430.0,0.00019452,2]
[363038206,1748557842106,-430.0,0.00019452,2]
[363038207,1748557842115,-586.57,0.00019452,2]
[363038208,1748557842124,-529.41,0.00019452,2]
[363038209,1748557842133,-430.0,0.00019452,2]
[363038210,1748557842143,-430.0,0.00019452,2]
[363038211,1748557842151,-400.0,0.00019452,2]
[363038212,1748557842161,-430.0,0.00019452,2]
[363038213,1748557842171,-430.0,0.00019452,2]
[363038214,1748557842180,-430.0,0.00019452,2]
[363038215,1748557842190,-430.0,0.00019452,2]
[363038216,1748557842199,-430.0,0.00019452,2]
[363038217,1748557842209,-1603.04,0.00019452,2]
[363038218,1748557842218,-430.0,0.00019452,2]
[363038219,1748557842227,-430.0,0.00019452,2]
[363038220,1748557842236,-430.0,0.00019452,2]
[363038221,1748557842245,-430.0,0.00019452,2]
[363038223,1748557842254,-430.0,0.00019452,2]
[363038224,1748557842263,-430.0,0.00019452,2]
[363038225,1748557842273,-450.0,0.00019452,2]
[363038226,1748557842282,-430.0,0.00019452,2]
[363038227,1748557842291,-3521.83,0.00019452,2]
[363038228,1748557842300,-3127.8,0.00019452,2]
[363038229,1748557842310,-430.0,0.00019452,2]
[363038230,1748557842319,-450.0,0.00019452,2]
[363038231,1748557842329,-450.0,0.00019452,2]
[363038232,1748557842338,-1237.61,0.00019452,2]
[363038233,1748557842347,-430.0,0.00019452,2]
[363038234,1748557842357,-542.72456323,0.00019452,2]
[363038235,1748557842367,-430.0,0.00019452,2]
[363038236,1748557842376,-754.99,0.00019452,2]
[363038237,1748557842385,-183.12674276,0.00019452,2]
[363038238,1748557842394,-607.06,0.00019452,2]
[363038239,1748557842404,-1761.4,0.00019452,2]
[363038240,1748557842413,-430.0,0.00019452,2]
[363038241,1748557842422,-430.0,0.00019452,2]
[363038242,1748557842431,-2258.97,0.00019452,2]
[363038243,1748557842441,-430.0,0.00019452,2]
[363038244,1748557842450,-430.0,0.00019452,2]
[363038245,1748557842459,-342.34602166,0.00019452,2]
[363038247,1748557842468,-561.13,0.00019452,2]
[363038248,1748557842479,-430.0,0.00019452,2]
[363038249,1748557842488,-440.0,0.00019452,2]
[363038250,1748557842497,-1364.45,0.00019452,2]
[363038251,1748557842506,-430.0,0.00019452,2]
[363038252,1748557842515,-732.26,0.00019452,2]
[363038253,1748557842524,-430.0,0.00019452,2]
[363038254,1748557842533,-430.0,0.00019452,2]
[363038255,1748557842542,-430.0,0.00019452,2]
[363038257,1748557842552,-667.85,0.00019452,2]
[363038258,1748557842561,-877.76,0.00019452,2]
[363038259,1748557842570,-1263.12,0.00019452,2]
[363038260,1748557842584,-151.47067334,0.00019452,2]
[363038261,1748557842593,-430.0,0.00019452,2]
[363038262,1748557842602,-430.0,0.00019452,2]
[363038263,1748557842711,-430.0,0.00019452,2]
[363038264,1748557842720,-644.62,0.00019452,2]
[363038265,1748557842730,-430.0,0.00019452,2]
[363038266,1748557842740,-430.0,0.00019452,2]
[363038267,1748557842750,-430.0,0.00019452,2]
[363038268,1748557842759,-490.0,0.00019452,2]
[363038269,1748557842768,-430.0,0.00019452,2]
[363038270,1748557842778,-430.0,0.00019452,2]
[363038271,1748557842787,-1941.05,0.00019452,2]
[363038272,1748557842796,-430.0,0.00019452,2]
[363038273,1748557842806,-6482.37,0.00019452,2]
[363038274,1748557842816,-700.29,0.00019452,2]
[363038275,1748557842825,-1429.11,0.00019452,2]
[363038276,1748557842834,-6798.56,0.00019452,2]
[363038277,1748557842844,-3048.74,0.00019452,2]
[363038278,1748557842853,-500.0,0.00019452,2]
[363038279,1748557842862,-400.0,0.00019452,2]
[363038280,1748557842871,-1401.49,0.00019452,2]
[363038281,1748557842880,-430.0,0.00019452,2]
[363038282,1748557842889,-430.0,0.00019452,2]
[363038283,1748557842899,-430.0,0.00019452,2]
[363038284,1748557842908,-430.0,0.00019452,2]
[363038285,1748557842918,-430.0,0.00019452,2]
[363038286,1748557842928,-1785.73,0.00019452,2]
[363038287,1748557842937,-420.0,0.00019452,2]
[363038288,1748557842947,-4137.78,0.00019452,2]
[363038289,1748557842956,-430.0,0.00019452,2]
[363038290,1748557842965,-430.0,0.00019452,2]
[363038291,1748557842975,-461.22,0.00019452,2]
[363038292,1748557842985,-430.0,0.00019452,2]
[363038293,1748557842994,-430.0,0.00019452,2]
[363038294,1748557843004,-430.0,0.00019452,2]
[363038295,1748557843014,-430.0,0.00019452,2]
[363038296,1748557843023,-430.0,0.00019452,2]
[363038297,1748557843033,-430.0,0.00019452,2]
[363038299,1748557843043,-430.0,0.00019452,2]
[363038300,1748557843056,-2720.13,0.00019452,2]
[363038303,1748557843065,-430.0,0.00019452,2]
[363038305,1748557843076,-430.0,0.00019452,2]
[363038308,1748557843085,-430.0,0.00019452,2]
[363038310,1748557843095,-430.0,0.00019452,2]
[363038312,1748557843105,-519.34463416,0.00019452,2]
[363038314,1748557843115,-430.0,0.00019452,2]
[363038317,1748557843125,-1156.66,0.00019452,2]
[363038319,1748557843135,-430.0,0.00019452,2]
[363038321,1748557843145,-2199.24,0.00019452,2]
[363038323,1748557843154,-430.0,0.00019452,2]
[363038324,1748557843163,-430.0,0.00019452,2]
[363038327,1748557843173,-430.0,0.00019452,2]
[363038328,1748557843183,-2655.27,0.00019452,2]
[363038331,1748557843193,-644.54,0.00019452,2]
[363038333,1748557843202,-430.0,0.00019452,2]
[363038334,1748557843211,-430.0,0.00019452,2]
[363038336,1748557843220,-430.0,0.00019452,2]
[363038338,1748557843230,-430.0,0.00019452,2]
[363038340,1748557843239,-430.0,0.00019452,2]
[363038342,1748557843248,-447.92,0.00019452,2]
[363038344,1748557843257,-430.0,0.00019452,2]
[363038347,1748557843269,-430.0,0.00019452,2]
[363038349,1748557843279,-2374.77,0.00019452,2]
[363038351,1748557843288,-169.84,0.00019452,2]
[363038353,1748557843297,-430.0,0.00019452,2]
[363038355,1748557843308,-430.0,0.00019452,2]
[363038357,1748557843318,-641.37,0.00019452,2]
[363038359,1748557843327,-430.0,0.00019452,2]
[363038361,1748557843336,-430.0,0.00019452,2]
[363038363,1748557843346,-430.0,0.00019452,2]
[363038365,1748557843355,-430.0,0.00019452,2]
[363038367,1748557843364,-370.0,0.00019452,2]
[363038369,1748557843373,-430.0,0.00019452,2]
[363038371,1748557843383,-2642.34,0.00019452,2]
[363038373,1748557843392,-262.22291583,0.00019452,2]
[363038375,1748557843402,-164.28718055,0.00019452,2]
[363038377,1748557843411,-430.0,0.00019452,2]
[363038379,1748557843421,-430.0,0.00019452,2]
[363038381,1748557843430,-430.0,0.00019452,2]
[363038383,1748557843439,-400.0,0.00019452,2]
[363038385,1748557843448,-676.04,0.00019452,2]
[363038387,1748557843457,-430.0,0.00019452,2]
[363038389,1748557843466,-430.0,0.00019452,2]
[363038391,1748557843475,-500.0,0.00019473,2]
[363038393,1748557843484,-177.77189404,0.00019473,2]
[363038395,1748557843494,-468.30236844,0.00019726,2]
[363038397,1748557843503,-430.0,0.00019726,2]
[363038399,1748557843512,-430.0,0.00019726,2]
[363038401,1748557843521,-560.74505047,0.00019726,2]
[363038403,1748557843530,-430.0,0.00019726,2]
[363038405,1748557843539,-430.0,0.00019726,2]
[363038407,1748557843548,-430.0,0.00019726,2]
[363038408,1748557843558,-430.0,0.00019726,2]
[363038411,1748557843568,-430.0,0.00019726,2]
[363038412,1748557843580,-430.0,0.00019726,2]
[363038414,1748557843590,-430.0,0.00019726,2]
[363038416,1748557843600,-158.08173154,0.00019726,2]
[363038419,1748557843609,-465.13762339,0.00019726,2]
[363038421,1748557843618,-327.61351071,0.00019726,2]
[363038423,1748557843629,-430.0,0.00019726,2]
[363038425,1748557843638,-430.0,0.00019726,2]
[363038427,1748557843647,-430.0,0.00019726,2]
[363038429,1748557843656,-430.0,0.00019726,2]
[363038431,1748557843666,-327.7256588,0.00019726,2]
[363038433,1748557843676,-430.0,0.00019726,2]
[363038435,1748557843685,-430.0,0.00019726,2]
[363038437,1748557843694,-430.0,0.00019726,2]
[363038439,1748557843703,-430.0,0.00019726,2]
[363038441,1748557843713,-430.0,0.00019726,2]
[363038443,1748557843722,-430.0,0.00019726,2]
[363038445,1748557843731,-430.0,0.00019726,2]
[363038447,1748557843740,-430.0,0.00019726,2]
[363038449,1748557843749,-403.40862504,0.00019726,2]
[363038451,1748557843758,-430.0,0.00019726,2]
[363038453,1748557843767,-430.0,0.00019726,2]
[363038455,1748557843776,-430.0,0.00019726,2]
[363038456,1748557843785,-430.0,0.00019726,2]
[363038459,1748557843795,-430.0,0.00019726,2]
[363038460,1748557843804,-430.0,0.00019726,2]
[363038462,1748557843813,-430.0,0.00019726,2]
[363038464,1748557843823,-430.0,0.00019726,2]
[363038466,1748557843832,-327.56847809,0.00019726,2]
[363038468,1748557843841,-430.0,0.00019726,2]
[363038471,1748557843850,-501.84,0.00019726,2]
[363038472,1748557843859,-430.0,0.00019726,2]
[363038474,1748557843869,-430.0,0.00019726,2]
[363038477,1748557843878,-430.0,0.00019726,2]
[363038478,1748557843887,-430.0,0.00019726,2]
[363038480,1748557843896,-430.0,0.00019726,2]
[363038482,1748557843905,-430.0,0.00019726,2]
[363038484,1748557843914,-430.0,0.00019726,2]
[363038487,1748557843923,-515.82,0.00019726,2]
[363038489,1748557843933,-390.88900529,0.00019726,2]
[363038491,1748557843942,-450.0,0.00019726,2]
[363038492,1748557843951,-430.0,0.00019726,2]
[363038494,1748557843960,-430.0,0.00019726,2]
[363038497,1748557843969,-873.99,0.00019726,2]
[363038499,1748557843979,-335.9774252,0.00019726,2]
[363038501,1748557843988,-490.0,0.00019726,2]
[363038502,1748557843997,-376.4285915,0.00019726,2]
[363038504,1748557844007,-430.0,0.00019726,2]
[363038506,1748557844015,-430.0,0.00019726,2]
[363038508,1748557844025,-430.0,0.00019726,2]
[363038510,1748557844034,-430.0,0.00019726,2]
[363038512,1748557844044,-1069.37,0.00019726,2]
[363038514,1748557844053,-584.45,0.00019726,2]
[363038516,1748557844063,-430.0,0.00019726,2]
[363038518,1748557844072,-688.69,0.00019726,2]
[363038520,1748557844081,-430.0,0.00019726,2]
[363038522,1748557844091,-430.0,0.00019726,2]
[363038524,1748557844101,-430.0,0.00019726,2]
[363038526,1748557844111,-430.0,0.00019726,2]
[363038528,1748557844120,-430.0,0.00019726,2]
[363038530,1748557844129,-354.49482467,0.00019726,2]
[363038532,1748557844138,-531.57,0.00019726,2]
[363038534,1748557844148,-377.0641637,0.00019726,2]
[363038536,1748557844157,-430.0,0.00019726,2]
[363038538,1748557844168,-430.0,0.00019726,2]
[363038540,1748557844177,-483.42695898,0.00019726,2]
[363038542,1748557844187,-430.0,0.00019726,2]
[363038543,1748557844196,-537.88,0.00019726,2]
[363038544,1748557844206,-430.0,0.00019726,2]
[363038545,1748557844215,-430.0,0.00019726,2]
[363038546,1748557844225,-430.0,0.00019726,2]
[363038547,1748557844234,-430.0,0.00019726,2]
[363038548,1748557844243,-510.32786904,0.00019726,2]
[363038549,1748557844253,-430.0,0.00019726,2]
[363038550,1748557844263,-430.0,0.00019726,2]
[363038551,1748557844272,-4017.04,0.00019726,2]
[363038552,1748557844282,-430.0,0.00019726,2]
[363038553,1748557844292,-430.0,0.00019726,2]
[363038554,1748557844301,-586.57,0.00019726,2]
[363038555,1748557844311,-529.41,0.00019726,2]
[363038556,1748557844320,-430.0,0.00019726,2]
[363038557,1748557844330,-430.0,0.00019726,2]
[363038558,1748557844339,-430.0,0.00019726,2]
[363038559,1748557844349,-430.0,0.00019726,2]
[363038560,1748557844358,-430.0,0.00019726,2]
[363038561,1748557844368,-1603.04,0.00019726,2]
[363038562,1748557844377,-430.0,0.00019726,2]
[363038563,1748557844387,-430.0,0.00019726,2]
[363038564,1748557844396,-430.0,0.00019726,2]
[363038565,1748557844405,-430.0,0.00019726,2]
[363038566,1748557844414,-340.0,0.00019726,2]
[363038568,1748557844423,-430.0,0.00019726,2]
[363038569,1748557844432,-430.0,0.00019726,2]
[363038570,1748557844441,-3521.83,0.00019726,2]
[363038571,1748557844451,-3127.8,0.00019726,2]
[363038573,1748557844460,-430.0,0.00019726,2]
[363038575,1748557844469,-1237.61,0.00019726,2]
[363038576,1748557844478,-430.0,0.00019726,2]
[363038578,1748557844487,-430.0,0.00019726,2]
[363038580,1748557844496,-754.99,0.00019726,2]
[363038582,1748557844505,-607.06,0.00019726,2]
[363038584,1748557844515,-1761.4,0.00019726,2]
[363038586,1748557844524,-2258.97,0.00019726,2]
[363038588,1748557844533,-561.13,0.00019726,2]
[363038590,1748557844543,-430.0,0.00019726,2]
[363038592,1748557844552,-1364.45,0.00019726,2]
[363038594,1748557844561,-732.26,0.00019726,2]
[363038596,1748557844571,-430.0,0.00019726,2]
[363038598,1748557844584,-877.76,0.00019726,2]
[363038600,1748557844594,-667.85,0.00019726,2]
[363038602,1748557844603,-1263.12,0.00019726,2]
[363038604,1748557844613,-430.0,0.00019726,2]
[363038606,1748557844623,-430.0,0.00019726,2]
[363038608,1748557844632,-430.0,0.00019726,2]
[363038610,1748557844641,-644.62,0.00019726,2]
[363038612,1748557844652,-430.0,0.00019726,2]
[363038614,1748557844662,-430.0,0.00019726,2]
[363038616,1748557844671,-1941.05,0.00019726,2]
[363038618,1748557844680,-6482.37,0.00019726,2]
[363038620,1748557844689,-700.29,0.00019726,2]
[363038622,1748557844698,-1429.11,0.00019726,2]
[363038624,1748557844708,-6798.56,0.00019726,2]
[363038626,1748557844718,-3048.74,0.00019726,2]
[363038628,1748557844727,-500.0,0.00019726,2]
[363038630,1748557844737,-1401.49,0.00019726,2]
[363038632,1748557844747,-430.0,0.00019726,2]
[363038634,1748557844756,-430.0,0.00019726,2]
[363038636,1748557844765,-430.0,0.00019726,2]
[363038638,1748557844775,-1785.73,0.00019726,2]
[363038640,1748557844784,-4137.78,0.00019726,2]
[363038642,1748557844794,-430.0,0.00019726,2]
[363038644,1748557844803,-461.22,0.00019726,2]
[363038646,1748557844812,-570.0,0.00019726,2]
[363038648,1748557844821,-430.0,0.00019726,2]
[363038650,1748557844831,-430.0,0.00019726,2]
[363038662,1748557844928,-430.0,0.00019726,2]
[363038664,1748557844948,-430.0,0.00019726,2]
[363038666,1748557844957,-430.0,0.00019726,2]
[363038668,1748557844966,-2720.13,0.00019726,2]
[363038670,1748557844975,-430.0,0.00019726,2]
[363038672,1748557844984,-1156.66,0.00019726,2]
[363038674,1748557844994,-430.0,0.00019726,2]
[363038676,1748557845004,-2199.24,0.00019726,2]
[363038678,1748557845013,-430.0,0.00019726,2]
[363038680,1748557845023,-430.0,0.00019726,2]
[363038682,1748557845032,-430.0,0.00019726,2]
[363038684,1748557845041,-2655.27,0.00019726,2]
[363038685,1748557845050,-644.54,0.00019726,2]
[363038688,1748557845062,-430.0,0.00019726,2]
[363038690,1748557845071,-430.0,0.00019726,2]